Cogmind - Beta 13 @@@ ROGUE MODE // 2024.05.23 @ 11:47:42 Player: mewcatx Result: Destroyed by P-80 Master with Gamma Rifle Performance ------------- Evolutions (7) 3500 Regions Visited (20) 4000 Robots Destroyed (130) 650 Value Destroyed (4749) 4749 Prototype IDs (48) 960 Alien Tech Used (0) 0 Bonus (4771) 4771 TOTAL SCORE: 18630 Bonus ------- Follower Combat Kills 3305 Aligned with FarCom 300 Met Warlord at Base 500 MAIN.C Attacked Warlord 500 Built Enhanced Grunts 300 A7 Reached Mainframe 300 Friendly Fire -434 Cogmind --------- Core Integrity 0/1300 Matter 103/300 Energy 99/100 System Corruption 20% Temperature Cool (0) Movement Core (50) Location -3/Research Parts ------- > --- POWER (2) -------- (None) > --- PROPULSION (6) --- (None) > --- UTILITY (10) ----- Advanced Signal Interpreter Improved Terrain Scan Processor Hacking Suite Advanced Hacking Suite Advanced System Shield > --- WEAPON (3) ------- (None) > --- INVENTORY (5) ---- Gravmag Array Makeshift ECM Suite Point Defense Array Quantum Rifle Peak State ------------ > --- POWER ------------ Light Particle Reactor Cooled Antimatter Reactor > --- PROPULSION ------- Gyrokinetic Inverter Gyrokinetic Inverter Improved Antigrav System Improved Antigrav System Improved Gyrokinetic Inverter Combat Linear Gravjet > --- UTILITY ---------- Advanced Heat Sink Advanced Heat Sink Medium Storage Unit Advanced Signal Interpreter 0b10 Alert Chip Improved Kinecellerator Layered Medium Armor Plating Hacking Suite Advanced Hacking Suite Advanced System Shield > --- WEAPON ----------- Heavy Battle Rifle Advanced KE Penetrator Linear Accelerator > --- INVENTORY -------- Quantum Reactor Gyrokinetic Inverter Antigrav Array Makeshift ECM Suite Makeshift Light Armor Plating Point Defense Array Scatter Rocket Array Thermoblaster Phasing Sabre [Rating: 133] Favorites ----------- Power Micro Fission Core Engine Light Angular Momentum Engine Power Core Micro Fission Core Reactor Light Antimatter Reactor Propulsion Gyrokinetic Inverter Treads Light Treads Leg Carbon-fiber Leg Wheel Compact Wheel Hover Unit Gyrokinetic Inverter Flight Unit Cooled VTOL Module Utility Hacking Suite Device Improved Heat Sink Storage Medium Storage Unit Processor 0b10 Alert Chip Hackware Hacking Suite Protection Layered Medium Armor Plating Weapon Heavy Battle Rifle Energy Gun Plasma Rifle Energy Cannon Heavy Plasma Cannon Ballistic Gun Heavy Battle Rifle Ballistic Cannon Enhanced Gauss Cannon Launcher Grenade Launcher Special Weapon Advanced Remote Datajack Impact Weapon Hammer Slashing Weapon Phasing Sabre Build | -11 -10 -10 -10 -9 -8 -7 -6 -6 -6 -6 -6 -5 -5 -5 -5 -4 -4 -4 -4 -3 ------- Run | Yrd Mat Min Exi Min Mat Fac Fac Was Fac Ext Cet Fac Upp Upp War Pro Fac Was Fac Res Slots Evolved 14 | . . . . . 4 2 2 . . . . 2 . . . . 2 . . 2 Power 1 | . . . . . . . 1 . . . . . . . . . . . . . Propulsion 4 | . . . . . 1 1 . . . . . 1 . . . . 1 . . . Utility 8 | . . . . . 3 1 . . . . . 1 . . . . 1 . . 2 Weapon 1 | . . . . . . . 1 . . . . . . . . . . . . . Parts Attached 283 | 6 3 2 . 5 39 11 18 3 37 17 9 36 9 12 5 4 1 3 12 51 Power 33 | 1 . 1 . . 1 1 3 1 5 4 2 2 1 . . . . 1 . 10 Engine 13 | 1 . 1 . . 1 . . . 4 3 1 1 . . . . . . . 1 Core 10 | . . . . . . 1 3 . 1 1 1 1 . . . . . . . 2 Reactor 10 | . . . . . . . . 1 . . . . 1 . . . . 1 . 7 Propulsion 52 | 2 . . . 2 15 3 1 1 7 4 1 6 . . 1 . . . 2 7 Treads 2 | 2 . . . . . . . . . . . . . . . . . . . . Leg 9 | . . . . . 5 2 1 1 . . . . . . . . . . . . Wheel 9 | . . . . 2 6 . . . . . . . . . . . . . . 1 Hover 29 | . . . . . 1 1 . . 7 4 1 6 . . 1 . . . 2 6 Flight 3 | . . . . . 3 . . . . . . . . . . . . . . . Utility 82 | 1 2 . . . 12 3 8 1 11 5 1 11 6 2 . . . 1 6 12 Device 31 | . 1 . . . 2 2 4 1 4 . . 2 4 1 . . . 1 2 7 Storage 6 | 1 1 . . . 1 . 1 . 2 . . . . . . . . . . . Processor 4 | . . . . . 1 . . . 2 . . . . . . . . . . 1 Hackware 7 | . . . . . 3 . . . . 1 . 1 . . . . . . 2 . Protection 34 | . . . . . 5 1 3 . 3 4 1 8 2 1 . . . . 2 4 Artifact . | . . . . . . . . . . . . . . . . . . . . . Weapon 116 | 2 1 1 . 3 11 4 6 . 14 4 5 17 2 10 4 4 1 1 4 22 Energy Gun 15 | . 1 . . . 2 2 1 . 3 1 . 2 . . 1 . . . . 2 Energy Cannon 20 | . . . . . 4 1 3 . 5 1 1 2 . 2 . . . . . 1 Ballistic Gun 24 | 2 . . . 2 2 . . . 2 1 1 4 . 3 1 . . 1 2 3 Ballistic Cannon 15 | . . . . . . . . . 1 . . 3 1 1 2 . 1 . 2 4 Launcher 16 | . . 1 . . 1 . 1 . 1 . 1 1 . 2 . 3 . . . 5 Special Weapon 1 | . . . . . . . . . . . . . . . . . . . . 1 Impact Weapon 7 | . . . . 1 2 . . . . . . . . . . . . . . 4 Slashing Weapon 18 | . . . . . . 1 1 . 2 1 2 5 1 2 . 1 . . . 2 Piercing Weapon . | . . . . . . . . . . . . . . . . . . . . . Special Melee Weapon . | . . . . . . . . . . . . . . . . . . . . . Unidentified Prototypes 16 | . . . . . 4 1 1 . 5 . . . . . 1 . 1 . . 3 Parts Lost 69 | . . 1 . 5 7 . 2 5 3 5 2 3 1 . . 3 . . 1 31 Power 16 | . . 1 . . . . 1 2 . 2 1 1 . . . 2 . . 1 5 Propulsion 20 | . . . . 2 4 . . 1 . 3 . 2 . . . . . . . 8 Utility 15 | . . . . . 2 . 1 . 2 . . . 1 . . . . . . 9 Weapon 18 | . . . . 3 1 . . 2 1 . 1 . . . . 1 . . . 9 Highest Loss Streak 16 | . . 1 . 4 3 . 1 5 1 2 1 1 1 . . 3 . . 1 16 To Critical Strikes 2 | . . . . . . . . . . . . . . . . 1 . . . 1 Average Slot Usage (%) 90 | . 94 100 100 95 94 96 99 71 79 91 87 91 94 94 94 93 68 81 91 81 Engine 4 | . 14 14 14 14 9 3 . . . 3 5 5 4 . . . . 3 4 . Core 3 | . . . . . . 3 12 3 3 2 5 3 5 5 5 5 . . . 1 Reactor 1 | . . . . . . . . 1 . . . . 1 5 5 4 . 4 5 2 Treads 2 | . 28 28 28 19 . . . . . . . . . . . . . . . . Leg 4 | . . . . . 5 23 26 16 . . . . . . . . . . . . Wheel 2 | . . . . 8 13 . . . . . . . . . . . . . . . Hover 14 | . . . . . . 3 . . 19 25 20 22 23 23 23 23 21 21 25 20 Device 8 | . 8 14 14 14 11 7 7 10 12 5 . 4 5 8 5 5 5 9 7 9 Storage 6 | . 14 14 14 14 9 7 6 3 2 6 6 5 5 5 5 5 5 5 5 3 Processor 9 | . . . . . 8 7 6 6 13 13 13 11 11 11 11 11 10 10 10 8 Hackware 9 | . . . . . 8 15 13 13 7 6 13 11 11 11 11 11 10 10 14 15 Protection 4 | . . . . . 6 7 5 1 2 6 2 4 5 2 5 5 5 5 2 2 Energy Gun 3 | . 7 14 14 6 4 1 5 3 . 3 6 4 5 2 . . . . . . Energy Cannon 3 | . . . . . 7 7 12 8 2 6 6 3 5 2 . . . . . . Ballistic Gun 3 | . 20 3 . 5 1 3 . . . 6 1 1 . 4 5 5 5 8 10 5 Ballistic Cannon 1 | . . . . . . . . . 4 . . 1 4 . 4 4 . . 3 2 Launcher 1 | . . 10 14 6 1 . . . . . . . . . . 3 5 1 . . Slashing Weapon 1 | . . . . . . 1 . . 5 2 3 3 . 4 5 1 . . . . Naked Turns . | . . . . . . . . . . . . . . . . . . . . . Heaviest Build 69 | 11 29 32 32 32 44 38 59 61 50 54 48 55 55 54 49 53 27 61 60 69 Greatest Support 72 | 40 40 40 40 40 48 63 68 68 41 42 42 53 53 53 56 56 31 56 67 72 Greatest Overweight (x) 3 | . . . . 1 3 . . 1 1 1 1 1 1 1 . . . 1 . 3 Average Overweight (x) . | . . . . . . . . . . . . . . . . . . . . . Largest Inventory Capacity 15 | 8 15 15 15 15 15 10 10 10 15 10 10 10 10 10 10 10 10 10 10 10 Average Capacity 10 | 6 10 15 15 15 14 10 10 8 8 10 10 10 10 10 10 10 10 10 10 9 Most Carried 15 | 3 11 11 12 13 15 10 10 10 15 10 10 10 10 10 10 10 10 10 10 10 Average Carried 9 | 1 7 10 10 11 13 9 9 7 7 9 9 9 9 9 9 10 10 9 9 8 Final Capacity 15 | 8 15 15 15 15 10 10 10 5 10 10 10 10 10 10 10 10 10 10 10 5 Final Carried 12 | 3 11 10 12 11 10 10 10 5 10 10 9 10 10 10 10 10 10 10 10 5 Class Distribution -------------------- 19% | Mutant 19% | Scavenger-Mutant 19% | Hacker-Mutant 15% | Hacker-Skirmisher 4% | Commander-Mutant 4% | Scout 4% | Scavenger-Tank 3% | Assassin 3% | Commander-Skirmisher Dominant Class ---------------- Mutant | -10/Materials Mutant | -10/Mines Mutant | -10/Exiles Mutant | -9/Mines Mutant | -8/Materials Hacker-Mutant | -7/Factory Hacker-Skirmisher | -6/Factory Hacker-Skirmisher | -6/Waste Assassin | -6/Factory Commander-Skirmisher | -6/Extension Commander-Mutant | -6/Cetus Scavenger-Mutant | -5/Factory Scavenger-Tank | -5/Upper Caves Scavenger-Mutant | -5/Upper Caves Scavenger-Mutant | -5/Warlord Scavenger-Tank | -4/Proximity Caves Hacker-Mutant | -4/Factory Hacker-Mutant | -4/Waste Hacker-Skirmisher | -4/Factory Hacker-Mutant | -3/Research Resources | -11 -10 -10 -10 -9 -8 -7 -6 -6 -6 -6 -6 -5 -5 -5 -5 -4 -4 -4 -4 -3 ----------- Run | Yrd Mat Min Exi Min Mat Fac Fac Was Fac Ext Cet Fac Upp Upp War Pro Fac Was Fac Res Matter Collected 5198 | 244 138 12 78 120 470 140 227 . 497 523 205 504 152 122 179 215 . 220 144 1008 Remotely . | . . . . . . . . . . . . . . . . . . . . . Salvage Created 5344 | . 298 27 . 160 1150 166 359 . 670 575 227 174 70 161 . 186 . 247 . 874 Parts 271 | . 20 7 . 11 64 13 25 . 29 19 13 8 . 10 . 9 . . . 43 Haulers Intercepted 5 | . . . . . 1 . . . 2 1 . . 1 . . . . . . . Recyclers Shooed 8 | . 1 . . 1 2 . . . 1 1 . . . . . . . . . 2 Parts Field Recycled . | . . . . . . . . . . . . . . . . . . . . . Retrieved Matter . | . . . . . . . . . . . . . . . . . . . . . Parts Self-Destructed 28 | . . . . . . . . . . . . . 11 11 . 6 . . . . Prevented 1 | . . . . . . . . . . . . . 1 . . . . . . . Kills | -11 -10 -10 -10 -9 -8 -7 -6 -6 -6 -6 -6 -5 -5 -5 -5 -4 -4 -4 -4 -3 ------- Run | Yrd Mat Min Exi Min Mat Fac Fac Was Fac Ext Cet Fac Upp Upp War Pro Fac Was Fac Res Combat Hostiles Destroyed 91 | . 6 2 . 5 18 3 9 . 6 7 4 2 . 7 . 10 . 1 . 11 Melee 4 | . . . . 1 . 1 . . 1 . . . . . . . . . . 1 Guns 29 | . 6 . . 1 8 2 1 . . 4 1 1 . . . . . 1 . 4 Cannons 24 | . . . . . 9 . 4 . 1 2 3 . . 2 . 1 . . . 2 AOE 30 | . . 2 . 2 . . 4 . 4 . . . . 5 . 9 . . . 4 Classes Destroyed 17 | . 4 1 . 3 2 1 2 . 1 1 1 . . . . . . 1 . . Worker 7 | . . . . . . . 1 . . . . 1 . . . . . . . 5 Builder 9 | . . 2 . . 1 . 1 . 1 1 . . . . . . . . . 3 Tunneler 3 | . . . . 2 1 . . . . . . . . . . . . . . . Hauler 5 | . . . . . 1 . . . 2 1 . . 1 . . . . . . . Recycler 9 | . 1 . . . 3 . . . 2 . . . . . . . . . . 3 Operator 3 | . 1 . . . 1 . . . . . . 1 . . . . . . . . Watcher 2 | . . . . . . . 1 . . . 1 . . . . . . . . . Swarmer 23 | . 3 . . . 1 . 4 . . . 1 . . 6 . 8 . . . . Cutter 4 | . . . . . . . . . 4 . . . . . . . . . . . Grunt 24 | . 3 2 . 3 9 . . . . 3 1 1 . 1 . 1 . . . . Brawler 2 | . . . . 1 1 . . . . . . . . . . . . . . . Duelist 1 | . . . . 1 . . . . . . . . . . . . . . . . Sentry 16 | . . . . . 7 1 2 . . 3 . 1 . . . 1 . . . 1 Hunter 3 | . . . . . . . . . . . 2 . . . . . . . . 1 Programmer 16 | . . . . . . 2 3 . 2 . . . . . . . . . . 9 Behemoth 1 | . . . . . . . . . . 1 . . . . . . . . . . Compactor 1 | . . . . . . . . . . . . . . . . . . 1 . . Savage 1 | . . . . . . . . . . 1 . . . . . . . . . . Best Kill Streak 5 | . 5 4 . 4 5 1 4 . 5 2 2 1 1 5 . 5 . 1 . 3 Combat Bots Only 5 | . 4 2 . 2 5 1 4 . 4 1 2 1 . 5 . 5 . 1 . 2 Max Kills in Single Turn 5 | . 1 2 . 2 2 1 2 . 4 1 1 1 1 5 . 4 . 1 . 3 Gunslinging . | . . . . . . . . . . . . . . . . . . . . . Exploded 5 | . . 1 . 1 . . 2 . 4 . . . . 5 . 4 . . . 2 Melee 1 | . . . . 1 . 1 . . 1 . . . . . . . . . . 1 Uniques/NPCs Destroyed . | . . . . . . . . . . . . . . . . . . . . . Combat | -11 -10 -10 -10 -9 -8 -7 -6 -6 -6 -6 -6 -5 -5 -5 -5 -4 -4 -4 -4 -3 -------- Run | Yrd Mat Min Exi Min Mat Fac Fac Was Fac Ext Cet Fac Upp Upp War Pro Fac Was Fac Res Hostile Shots Fired 950 | . 36 13 . 35 92 32 68 6 45 155 27 32 17 9 11 63 . . 8 301 Missed 342 | . 9 4 . 10 36 10 29 2 19 62 6 6 5 3 9 28 . . 4 100 Damage Taken 11220 | . 334 138 . 451 878 246 510 225 655 972 339 528 225 165 45 703 . 44 119 4643 Core 2465 | . 65 15 . 44 156 16 28 60 94 342 66 93 20 29 . 113 . . . 1324 Absorbed by Shields 291 | . . . . . . . . . . 128 163 . . . . . . . . . Regen/Repaired (Parts) 284 | . . . . . . . . . . . . . . . 109 . . 110 65 . Core Remaining (%) 74 | 100 . . . 50 71 97 . . . . 30 . . . . 74 . . 100 . Volleys Fired 316 | . 30 5 . 19 67 10 21 . 8 27 14 22 11 5 . 12 . 10 4 51 Largest 3 | . 2 2 . 2 2 2 3 . 2 3 3 3 3 3 . 2 . 2 2 3 Hottest 260 | . 85 95 . 95 129 113 260 . 148 200 250 213 213 213 . 260 . 66 66 134 Shots Fired 647 | . 60 10 . 32 131 18 48 . 14 71 29 47 18 11 . 18 . 20 8 112 Gun 394 | . 60 5 . 28 81 8 12 . 3 48 14 25 3 3 . 6 . 20 8 70 Cannon 214 | . . . . . 48 10 31 . 10 23 13 22 15 6 . 6 . . . 30 Launcher 38 | . . 5 . 4 2 . 5 . 1 . 2 . . 2 . 6 . . . 11 Special 1 | . . . . . . . . . . . . . . . . . . . . 1 Kinetic 327 | . 57 . . 25 29 3 . . 7 29 5 20 11 3 . 12 . 20 8 98 Thermal 216 | . 3 5 . 3 72 10 38 . 6 42 18 11 3 3 . 1 . . . 1 Explosive 37 | . . 5 . 4 2 . 5 . 1 . 2 . . 2 . 5 . . . 11 Electromagnetic 66 | . . . . . 28 5 5 . . . 4 16 4 3 . . . . . 1 Robot Hit Streak 17 | . 5 6 . 4 17 6 8 . 7 16 17 10 4 2 . 4 . 7 . 6 Robot Miss Streak 11 | . 4 1 . 3 7 2 3 . 10 10 3 4 3 1 . 11 . 2 8 5 Penetration Max 1 | . . . . . . . . . . . . . . . . . . . . 1 Secondary Targets 4 | . 2 . . . . . . . . 1 . . . . . . . 1 . . Max Gunslinging Chain 1 | . 1 . . . . . . . . 1 . . . . . . . 1 . . Shots Hit Robots 428 | . 31 8 . 23 86 13 28 . 27 50 17 32 10 4 . 8 . 15 . 76 Core Hits 281 | . 14 9 . 9 35 7 20 . 17 33 33 10 4 8 . 31 . 2 . 49 Critical Kills 3 | . . . . . 1 . . . . . . 1 . . . . . . . 1 Critical Parts Destroyed 5 | . . . . 1 . . . . . . . . . . . . . . . 4 Critical Strikes 21 | . . . . 1 4 . . . 3 1 . 2 2 . . 1 . . . 7 Burn 6 | . . . . . 3 . . . . 1 . 1 1 . . . . . . . Meltdown 1 | . . . . . 1 . . . . . . . . . . . . . . . Destroy 4 | . . . . 1 . . . . . . . 1 . . . . . . . 2 Blast 5 | . . . . . . . . . 1 . . . 1 . . 1 . . . 2 Smash 3 | . . . . . . . . . . . . . . . . . . . . 3 Sever 2 | . . . . . . . . . 2 . . . . . . . . . . . Melee Attacks 203 | . . . . 7 10 5 1 . 33 25 8 66 2 2 . 4 . . . 40 Impact 50 | . . . . 7 10 . . . . . . . . . . . . . . 33 Slashing 153 | . . . . . . 5 1 . 33 25 8 66 2 2 . 4 . . . 7 Piercing . | . . . . . . . . . . . . . . . . . . . . . Sneak Attacks 13 | . . . . . 1 . . . 4 3 . 1 . . . . . . . 4 Combat Hostiles . | . . . . . . . . . . . . . . . . . . . . . Follow-up Attacks . | . . . . . . . . . . . . . . . . . . . . . Damage Inflicted 15988 | . 369 393 . 604 1888 298 1264 . 1697 1886 959 829 358 386 . 829 . 368 25 3835 Guns 4970 | . 369 64 . 178 903 118 247 . 21 693 160 355 25 24 . 76 . 368 25 1344 Cannons 4218 | . . . . . 775 85 486 . 225 903 329 278 333 143 . 113 . . . 548 Explosions 4246 | . . 329 . 264 178 . 494 . 470 . 470 . . 219 . 640 . . . 1182 Melee 2460 | . . . . 162 32 79 . . 981 253 . 196 . . . . . . . 757 Ramming 94 | . . . . . . 16 37 . . 37 . . . . . . . . . 4 Kinetic 4155 | . 353 . . 145 262 40 . . 66 333 24 236 198 58 . 189 . 368 25 1858 Thermal 4072 | . 16 64 . 33 932 85 738 . 180 1263 434 193 25 24 . 58 . . . 27 Explosive 4023 | . . 329 . 264 119 . 388 . 470 . 470 . . 219 . 582 . . . 1182 Electromagnetic 1184 | . . . . . 543 78 101 . . . 31 204 135 85 . . . . . 7 Impact 951 | . . . . 162 32 . . . . . . . . . . . . . . 757 Slashing 1509 | . . . . . . 79 . . 981 253 . 196 . . . . . . . . Piercing . | . . . . . . . . . . . . . . . . . . . . . Highest Corruption 19 | . . . . . . . 2 11 11 8 8 1 1 1 1 . . . . 19 Average Corruption 5 | . . . . . . . 1 9 8 7 8 1 1 1 1 . . . . 6 Corruption Purged 5 | . . . . . . . . . 5 . . . . . . . . . . . Corruption Blocked . | . . . . . . . . . . . . . . . . . . . . . Effects 191 | . . . . . . . 3 2 54 43 11 11 5 3 . . . . . 59 Message Errors 39 | . . . . . . . 2 . 11 6 1 4 2 1 . . . . . 12 Matter Fused 48 | . . . . . . . . 1 14 13 5 2 . . . . . . . 13 Heat Flow Errors 15 | . . . . . . . . . 2 7 . . 1 . . . . . . 5 Energy Discharges 32 | . . . . . . . . . 10 4 2 1 1 1 . . . . . 13 Parts Rejected 1 | . . . . . . . . . . . . . . . . . . . . 1 Parts Fused 6 | . . . . . . . . . 3 1 . . . . . . . . . 2 Data Loss (minor) 22 | . . . . . . . 1 1 7 5 2 1 . 1 . . . . . 4 Data Loss (major) 8 | . . . . . . . . . 1 2 1 1 1 . . . . . . 2 Misfires 9 | . . . . . . . . . 4 4 . 1 . . . . . . . . Alerts 6 | . . . . . . . . . 1 . . 1 . . . . . . . 4 Misdirections 3 | . . . . . . . . . 1 . . . . . . . . . . 2 Weapon Failures 2 | . . . . . . . . . . 1 . . . . . . . . . 1 Overload Shots . | . . . . . . . . . . . . . . . . . . . . . Overflow Damage 864 | . . 2 . 25 91 . 51 . 214 78 7 40 . . . . . . . 356 Projectiles 101 | . . . . . 7 . 42 . 4 . . . . . . . . . . 48 Explosions 122 | . . 2 . . 72 . 9 . 22 . 7 . . . . . . . . 10 Melee 641 | . . . . 25 12 . . . 188 78 . 40 . . . . . . . 298 Knockbacks 20 | . . . . 2 . . . . . 1 . . 1 . . . . . . 16 Impact 10 | . . . . 2 . . . . . 1 . . . . . . . . . 7 Kinetic 9 | . . . . . . . . . . . . . 1 . . . . . . 8 Secondary 1 | . . . . . . . . . . . . . . . . . . . . 1 Self-Inflicted Damage 745 | . . 23 . . 121 . 77 . 134 18 . . . 44 . 64 . . . 264 Shots 25 | . . 1 . . 2 . 2 . 5 . . . . 2 . 3 . . . 10 Rammed 3 | . . . . . . . . . . 2 . . . . . . . . . 1 Targets Rammed 7 | . . . . . . 1 3 . . 2 . . . . . . . . . 1 Kicked 4 | . . . . . . 1 3 . . . . . . . . . . . . . Crushed . | . . . . . . . . . . . . . . . . . . . . . Highest Temperature 550 | . 12 47 . 12 278 20 420 . 178 550 419 369 433 377 5 203 . 4 369 325 Average Temperature 124 | . 8 29 . 5 80 9 137 . 59 166 120 99 165 200 5 59 . 3 179 92 Received Heat Transfer 1306 | . 117 69 . 102 360 12 60 . 12 169 36 63 72 9 . 45 . . . 180 Effects 31 | . . . . . . . 6 . . 8 4 5 1 3 . . . . 3 1 Shutdowns 6 | . . . . . . . 1 . . 1 1 1 1 . . . . . 1 . Energy Bleed 2 | . . . . . . . 2 . . . . . . . . . . . . . Interference 14 | . . . . . . . 3 . . 4 . 3 . 3 . . . . 1 . Matter Decay 1 | . . . . . . . . . . 1 . . . . . . . . . . Short Circuit 3 | . . . . . . . . . . . 2 1 . . . . . . . . Damage (minor) 4 | . . . . . . . . . . 1 1 . . . . . . . 1 1 Damage (core) 1 | . . . . . . . . . . 1 . . . . . . . . . . Siege Activations . | . . . . . . . . . . . . . . . . . . . . . Robots Corrupted 1 | . . . . . . . . . . . . 1 . . . . . . . . Combat Hostiles 1 | . . . . . . . . . . . . 1 . . . . . . . . Parts Fried 9 | . . . . 1 2 1 . . . . 1 . . . . . . . . 4 Impact Corruptions 14 | . . . . 1 1 . . . . . . . . . . . . . . 12 Robots Melted 2 | . . . . . 1 . . . . 1 . . . . . . . . . . Combat Hostiles 2 | . . . . . 1 . . . . 1 . . . . . . . . . . Parts Melted 4 | . . . . . 1 . . . . 3 . . . . . . . . . . Heat Transferred 7284 | . 37 148 . 74 2085 148 1150 . 225 1950 650 500 150 50 . 80 . . . 37 Parts Sabotaged . | . . . . . . . . . . . . . . . . . . . . . Parts Stolen . | . . . . . . . . . . . . . . . . . . . . . Parts Stripped . | . . . . . . . . . . . . . . . . . . . . . Power Chain Reactions 3 | . . . . . 1 . 2 . . . . . . . . . . . . . Alert | -11 -10 -10 -10 -9 -8 -7 -6 -6 -6 -6 -6 -5 -5 -5 -5 -4 -4 -4 -4 -3 ------- Run | Yrd Mat Min Exi Min Mat Fac Fac Was Fac Ext Cet Fac Upp Upp War Pro Fac Was Fac Res Peak Influence 707 | . 190 100 . 132 257 122 143 12 210 170 424 686 . . . . 707 321 701 154 Initial 694 | . . 11 . . 19 95 . 10 . 102 34 237 . . . . 694 247 224 99 Average 138 | . 95 73 . 36 93 61 41 4 33 63 352 400 . . . . 705 288 392 48 Maximum Alert Level 3 | . . . . . 1 . . . 1 . 2 2 . . . . 3 1 3 . Low Security (%) 77 | 100 100 100 . 100 93 100 100 100 99 100 11 6 . . . . . . 23 100 Level 1 11 | . . . . . 6 . . . . . 23 47 . . . . . 100 39 . Level 2 9 | . . . . . . . . . . . 65 46 . . . . 14 . 26 . Level 3 1 | . . . . . . . . . . . . . . . . . 85 . 10 . Level 4 . | . . . . . . . . . . . . . . . . . . . . . Level 5 . | . . . . . . . . . . . . . . . . . . . . . High Security . | . . . . . . . . . . . . . . . . . . . . . Max Security . | . . . . . . . . . . . . . . . . . . . . . Squads Dispatched 39 | . 2 . . . 1 3 4 . 9 1 1 10 . 1 . . . . 1 6 Investigation 7 | . . . . . 1 . . . 2 . 1 3 . . . . . . . . Extermination 16 | . . . . . . 3 2 . 2 . . 4 . . . . . . 1 4 Reinforcement 14 | . 2 . . . . . 2 . 4 1 . 3 . . . . . . . 2 Assault 2 | . . . . . . . . . 1 . . . . 1 . . . . . . Garrison . | . . . . . . . . . . . . . . . . . . . . . Intercept . | . . . . . . . . . . . . . . . . . . . . . Searches Triggered . | . . . . . . . . . . . . . . . . . . . . . Construction Impeded 1 | . . . . . . . . . . . . . . . . . . . . 1 Haulers Reinforced 1 | . . . . . . . . . 1 . . . . . . . . . . . Active Scanning Responses . | . . . . . . . . . . . . . . . . . . . . . Cargo Convoy Interrupts 1 | . . . . . . . . . 1 . . . . . . . . . . . Stealth | -11 -10 -10 -10 -9 -8 -7 -6 -6 -6 -6 -6 -5 -5 -5 -5 -4 -4 -4 -4 -3 --------- Run | Yrd Mat Min Exi Min Mat Fac Fac Was Fac Ext Cet Fac Upp Upp War Pro Fac Was Fac Res Distress Signals 17 | . 4 . . . 5 . . . 1 3 1 . . . . . . . 1 2 Communications Jammed . | . . . . . . . . . . . . . . . . . . . . . Distress Signals . | . . . . . . . . . . . . . . . . . . . . . Times Spotted 296 | . 14 2 . 7 36 4 14 6 19 25 12 35 8 17 33 16 . 7 10 31 Peak Tracking Total 22 | . 4 2 . 3 8 1 4 6 7 5 5 5 5 11 22 5 . 4 5 5 Tactical Retreats 26 | . . . . 2 5 . . . 4 2 . 1 . 2 4 1 . 1 1 3 Traps | -11 -10 -10 -10 -9 -8 -7 -6 -6 -6 -6 -6 -5 -5 -5 -5 -4 -4 -4 -4 -3 ------- Run | Yrd Mat Min Exi Min Mat Fac Fac Was Fac Ext Cet Fac Upp Upp War Pro Fac Was Fac Res Traps Triggered 14 | . 1 . . . . . 1 . 2 3 . 3 . . . . 1 . 2 1 Indirectly . | . . . . . . . . . . . . . . . . . . . . . Trap Hack Attempts . | . . . . . . . . . . . . . . . . . . . . . Triggered . | . . . . . . . . . . . . . . . . . . . . . Disarmed 6 | . . . . . . . 6 . . . . . . . . . . . . . Reprogrammed . | . . . . . . . . . . . . . . . . . . . . . Reused . | . . . . . . . . . . . . . . . . . . . . . Traps Extracted . | . . . . . . . . . . . . . . . . . . . . . Installed . | . . . . . . . . . . . . . . . . . . . . . Triggered 24 | . . . . . 1 . . . 1 . . . . . 21 1 . . . . Machines | -11 -10 -10 -10 -9 -8 -7 -6 -6 -6 -6 -6 -5 -5 -5 -5 -4 -4 -4 -4 -3 ---------- Run | Yrd Mat Min Exi Min Mat Fac Fac Was Fac Ext Cet Fac Upp Upp War Pro Fac Was Fac Res Machines Disabled 31 | . . . . . 5 . 4 . 5 . 5 11 . . . . . . 1 . Max in Single Turn 3 | . . . . . 2 . 2 . 3 . 2 1 . . . . . . . . Garrison Access 8 | . . . . . 1 . . . 3 . . 2 . . . . . . 1 1 Machines Repaired . | . . . . . . . . . . . . . . . . . . . . . Machines Dismantled . | . . . . . . . . . . . . . . . . . . . . . Machines Sabotaged . | . . . . . . . . . . . . . . . . . . . . . Overloaded Fab Kills . | . . . . . . . . . . . . . . . . . . . . . Hacking | -11 -10 -10 -10 -9 -8 -7 -6 -6 -6 -6 -6 -5 -5 -5 -5 -4 -4 -4 -4 -3 --------- Run | Yrd Mat Min Exi Min Mat Fac Fac Was Fac Ext Cet Fac Upp Upp War Pro Fac Was Fac Res Machines Accessed 75 | . 4 . 2 . 6 3 5 . 8 10 1 13 1 1 6 . 3 . 6 6 Terminals 47 | . 4 . . . 3 3 3 . 3 10 1 11 1 . . . 2 . 4 2 Fabricators 2 | . . . . . . . . . 2 . . . . . . . . . . . Repair Stations 1 | . . . . . . . . . . . . . . . . . . . . 1 Recycling Units 8 | . . . . . 1 . 2 . 1 . . . . . . . 1 . 1 2 Scanalyzers 1 | . . . . . 1 . . . . . . . . . . . . . . . Garrison Access 7 | . . . . . 1 . . . 2 . . 2 . . . . . . 1 1 Total Hacks 176 | . 14 . 4 . 13 5 13 . 14 23 2 31 1 1 17 . 9 . 18 11 Successful 95 | . 6 . 4 . 7 3 8 . 7 8 . 15 1 1 17 . 4 . 8 6 Failed 81 | . 8 . . . 6 2 5 . 7 15 2 16 . . . . 5 . 10 5 Catastrophic 22 | . 5 . . . 1 . 1 . 2 4 1 5 . . . . . . 1 2 Database Lockouts . | . . . . . . . . . . . . . . . . . . . . . Manual 88 | . 14 . 1 . 6 3 10 . 4 14 1 18 1 . . . 4 . 8 4 Terminals 121 | . 14 . . . 6 5 11 . 8 23 2 28 1 . . . 5 . 14 4 Fabricators 3 | . . . . . . . . . 3 . . . . . . . . . . . Repair Stations 2 | . . . . . . . . . . . . . . . . . . . . 2 Recycling Units 13 | . . . . . 1 . 2 . 1 . . . . . . . 4 . 2 3 Scanalyzers 4 | . . . . . 4 . . . . . . . . . . . . . . . Garrison Access 11 | . . . . . 2 . . . 2 . . 3 . . . . . . 2 2 Terminal Hacks 62 | . 3 . 4 . 1 2 5 . 3 5 . 11 1 1 17 . 3 . 4 2 Record 15 | . . . 3 . . . . . 1 . . . 1 . 10 . . . . . Robot Analysis 4 | . 1 . . . . . 1 . 1 . . 1 . . . . . . . . Prototype ID Bank 5 | . . . . . . . . . . . . . . . 5 . . . . . Open Door 6 | . . . . . . . . . . 3 . . . 1 2 . . . . . Open DSF 2 | . . . . . . 1 . . . . . . . . . . . . . 1 Branch Access Points 1 | . . . . . . . . . . . . 1 . . . . . . . . Terminal Index 3 | . 1 . . . . . . . . . . 1 . . . . 1 . . . Recycling Unit Index 1 | . . . . . . . . . . . . . . . . . 1 . . . Unreport Threat 14 | . 1 . . . 1 . 2 . . 1 . 5 . . . . . . 3 1 Locate Traps 7 | . . . . . . 1 1 . 1 1 . 2 . . . . . . 1 . Disarm Traps 1 | . . . . . . . 1 . . . . . . . . . . . . . Maintenance Status 1 | . . . . . . . . . . . . 1 . . . . . . . . Hauler Manifests 1 | . . . . . . . . . . . . . . . . . 1 . . . Derelict Proto ID Bank 1 | . . . 1 . . . . . . . . . . . . . . . . . Fabricator Hacks 2 | . . . . . . . . . 2 . . . . . . . . . . . Load Schematic 1 | . . . . . . . . . 1 . . . . . . . . . . . Build 1 | . . . . . . . . . 1 . . . . . . . . . . . Repair Station Hacks 1 | . . . . . . . . . . . . . . . . . . . . 1 Refit 1 | . . . . . . . . . . . . . . . . . . . . 1 Recycling Unit Hacks 4 | . . . . . 1 . . . . . . . . . . . 1 . 1 1 Report Inventory 4 | . . . . . 1 . . . . . . . . . . . 1 . 1 1 Scanalyzer 4 | . . . . . 4 . . . . . . . . . . . . . . . Insert Component 2 | . . . . . 2 . . . . . . . . . . . . . . . Analyze 2 | . . . . . 2 . . . . . . . . . . . . . . . Garrison Access Hacks 7 | . . . . . 1 . . . 2 . . 2 . . . . . . 1 1 Seal Access 7 | . . . . . 1 . . . 2 . . 2 . . . . . . 1 1 Unauthorized Hacks 15 | . 3 . . . . 1 3 . . 3 . 2 . . . . . . 2 1 Terminals 11 | . 3 . . . . 1 1 . . 3 . 2 . . . . . . 1 . Assimilate 1 | . . . . . . . . . . . . 1 . . . . . . . . Botnet 10 | . 3 . . . . 1 1 . . 3 . 1 . . . . . . 1 . Fabricators . | . . . . . . . . . . . . . . . . . . . . . Repair Stations . | . . . . . . . . . . . . . . . . . . . . . Recycling Units 4 | . . . . . . . 2 . . . . . . . . . . . 1 1 Mask 4 | . . . . . . . 2 . . . . . . . . . . . 1 1 Scanalyzers . | . . . . . . . . . . . . . . . . . . . . . Garrison Access . | . . . . . . . . . . . . . . . . . . . . . Data Cores Recovered 2 | . . . . . 1 . . . . . . 1 . . . . . . . . Used . | . . . . . . . . . . . . . . . . . . . . . Hacking Detections 53 | . 4 . . . 5 2 4 . 6 7 1 10 1 . . . 3 . 6 4 Full Trace Events 5 | . . . . . 1 . . . 1 . 1 2 . . . . . . . . Feedback Events 1 | . . . . . . . . . . . . 1 . . . . . . . . Corruption 1 | . . . . . . . . . . . . 1 . . . . . . . . Feedback Blocked . | . . . . . . . . . . . . . . . . . . . . . Robot Schematics Acquired . | . . . . . . . . . . . . . . . . . . . . . Robots Built . | . . . . . . . . . . . . . . . . . . . . . Authchips . | . . . . . . . . . . . . . . . . . . . . . Time . | . . . . . . . . . . . . . . . . . . . . . Total Robot Build Rating . | . . . . . . . . . . . . . . . . . . . . . Part Schematics Acquired 2 | . . . . . 2 . . . . . . . . . . . . . . . Parts Built 1 | . . . . . . . . . 1 . . . . . . . . . . . Authchips . | . . . . . . . . . . . . . . . . . . . . . Time 73 | . . . . . . . . . 73 . . . . . . . . . . . Total Part Build Rating 3 | . . . . . . . . . 3 . . . . . . . . . . . Parts Repaired . | . . . . . . . . . . . . . . . . . . . . . Time . | . . . . . . . . . . . . . . . . . . . . . Parts Recycled . | . . . . . . . . . . . . . . . . . . . . . Recycled Matter . | . . . . . . . . . . . . . . . . . . . . . Retrieved Matter . | . . . . . . . . . . . . . . . . . . . . . Retrieved Components . | . . . . . . . . . . . . . . . . . . . . . Parts Scanalyzed 2 | . . . . . 2 . . . . . . . . . . . . . . . Part Schematics Acquired 2 | . . . . . 2 . . . . . . . . . . . . . . . Parts Damaged . | . . . . . . . . . . . . . . . . . . . . . Bothacking | -11 -10 -10 -10 -9 -8 -7 -6 -6 -6 -6 -6 -5 -5 -5 -5 -4 -4 -4 -4 -3 ------------ Run | Yrd Mat Min Exi Min Mat Fac Fac Was Fac Ext Cet Fac Upp Upp War Pro Fac Was Fac Res Used RIF Installer . | . . . . . . . . . . . . . . . . . . . . . Robots Hacked 1 | . . . . . . . . . . . . . . . . . . . . 1 Non-combat . | . . . . . . . . . . . . . . . . . . . . . Combat 1 | . . . . . . . . . . . . . . . . . . . . 1 Robot Hacks Applied 1 | . . . . . . . . . . . . . . . . . . . . 1 parse_system 1 | . . . . . . . . . . . . . . . . . . . . 1 Relay Couplers Released 3 | . . . . . . . . . 3 . . . . . . . . . . . Programmers 3 | . . . . . . . . . 3 . . . . . . . . . . . Fabnet Peak Effective % . | . . . . . . . . . . . . . . . . . . . . . Robots Rewired 19 | . . . . . . . . . . 14 . . . . 5 . . . . . Allies Hacked 2 | . . . . . . . . . . . . . . . . . . . 2 . Hacks Repelled . | . . . . . . . . . . . . . . . . . . . . . Allies | -11 -10 -10 -10 -9 -8 -7 -6 -6 -6 -6 -6 -5 -5 -5 -5 -4 -4 -4 -4 -3 -------- Run | Yrd Mat Min Exi Min Mat Fac Fac Was Fac Ext Cet Fac Upp Upp War Pro Fac Was Fac Res Total Allies 49 | . . . . . . . . . . 20 5 1 . . 5 . . 18 . . Largest Group 18 | . . . . . . . . . . 8 8 8 3 3 5 . . 18 10 4 Highest-Rated Group 694 | . . . . . . . . . . 297 694 694 281 281 229 . . 638 396 105 Highest-Rated Ally 159 | . . . . . . . . . . 159 159 159 96 96 49 . . 50 50 29 Total Orders 22 | . . . . . . . . . . 2 . 19 . . 1 . . . . . STAY 11 | . . . . . . . . . . 1 . 9 . . 1 . . . . . FOLLOW 11 | . . . . . . . . . . 1 . 10 . . . . . . . . Ally Attacks 496 | . . . . . . . . . . 126 31 120 24 12 22 . . 114 47 . Total Damage 18491 | . . . . . . . . . . 2523 884 4247 1243 465 736 . . 5658 2735 . Kills 105 | . . . . . . . . . . 16 10 32 10 1 5 . . 13 18 . Allies Corrupted 2 | . . . . . . . . . . . . 1 . . . . . . 1 . Allies Melted . | . . . . . . . . . . . . . . . . . . . . . Intel | -11 -10 -10 -10 -9 -8 -7 -6 -6 -6 -6 -6 -5 -5 -5 -5 -4 -4 -4 -4 -3 ------- Run | Yrd Mat Min Exi Min Mat Fac Fac Was Fac Ext Cet Fac Upp Upp War Pro Fac Was Fac Res Robot Analysis Total 4 | . 1 . . . . . 1 . 1 . . 1 . . . . . . . . Derelict Logs Recovered 8 | . . . . 1 . . . . . . . . 2 3 . 2 . . . . Drone Launches . | . . . . . . . . . . . . . . . . . . . . . Drone Recoveries . | . . . . . . . . . . . . . . . . . . . . . Exploration | -11 -10 -10 -10 -9 -8 -7 -6 -6 -6 -6 -6 -5 -5 -5 -5 -4 -4 -4 -4 -3 ------------- Run | Yrd Mat Min Exi Min Mat Fac Fac Was Fac Ext Cet Fac Upp Upp War Pro Fac Was Fac Res Turns Passed 17270 | 78 555 117 450 592 2464 818 1316 79 1712 1311 352 2175 508 416 973 371 132 193 523 2135 Spaces Moved 16843 | 44 283 63 281 366 1385 602 1049 89 2040 1185 333 2573 508 682 1320 547 176 201 728 2388 Core 394 | 3 . . . . . . . 45 162 . . . . . . . . . . 184 Treads 893 | 41 283 63 281 225 . . . . . . . . . . . . . . . . Legs 2062 | . . . . . 367 602 1049 44 . . . . . . . . . . . . Wheels 1230 | . . . . 141 1018 . . . . . . . . . . . . . . 71 Hover 12264 | . . . . . . . . . 1878 1185 333 2573 508 682 1320 547 176 201 728 2133 Flight . | . . . . . . . . . . . . . . . . . . . . . Fastest Speed 45 | 50 160 160 160 105 93 110 112 50 45 50 52 48 53 53 53 53 61 53 50 45 Average Speed 74 | 152 160 160 160 138 123 110 112 83 66 68 60 51 70 53 53 53 61 60 50 56 Slowest Speed 190 | 160 160 160 160 160 185 112 112 190 110 126 114 105 100 100 53 53 61 110 55 190 Overloaded Moves . | . . . . . . . . . . . . . . . . . . . . . Propulsion Burnouts . | . . . . . . . . . . . . . . . . . . . . . Robots Hopped 5 | . . . . . . . . . . . . . . . 3 . . . 2 . Cave-ins Triggered . | . . . . . . . . . . . . . . . . . . . . . Exploration Rate (%) 48 | 3 50 12 61 56 64 13 24 66 48 78 71 36 61 78 94 68 7 93 15 27 Regions Visited 20 Branch Regions 9 Pre-discovered Areas 2 | . . . 1 . . . . . . . . . . . . 1 . . . . Known Exits Taken 8 | . . . . . . . . . 1 . 1 1 1 1 1 1 . . 1 . Unknown Exits Taken 8 | 1 1 1 1 1 1 1 . . . 1 . . . . . . . . . . Scrap Searched 11 | . . . . 1 . . . . . . . . 5 2 . 3 . . . . Spaces Dug 152 | . . . . . 34 2 10 . 13 1 1 61 2 2 . 4 . . . 22 Terrain Destroyed 844 | . . 40 . 22 63 2 53 . 94 1 81 63 10 89 . 138 . . 1 187 Melee 109 | . . . . . 5 2 1 . 12 1 1 61 2 2 . 4 . . . 18 Projectile 84 | . . . . . . . 11 . 2 . . 2 8 1 . 6 . . 1 53 AOE 651 | . . 40 . 22 58 . 41 . 80 . 80 . . 86 . 128 . . . 116 Terrain Rammed . | . . . . . . . . . . . . . . . . . . . . . Walls Destroyed . | . . . . . . . . . . . . . . . . . . . . . Machines Disabled . | . . . . . . . . . . . . . . . . . . . . . Actions | -11 -10 -10 -10 -9 -8 -7 -6 -6 -6 -6 -6 -5 -5 -5 -5 -4 -4 -4 -4 -3 --------- Run | Yrd Mat Min Exi Min Mat Fac Fac Was Fac Ext Cet Fac Upp Upp War Pro Fac Was Fac Res Total 20625 | 52 331 69 282 407 2002 731 1143 93 2328 1585 437 3287 638 714 1592 594 201 251 870 3018 Wait 2562 | . 3 . . 8 434 89 38 . 160 204 71 547 96 7 239 28 23 37 122 456 Move 16818 | 43 282 62 280 365 1384 601 1049 88 2039 1184 332 2572 507 681 1315 546 176 200 724 2388 Hop 2 | . . . . . . . . . . . . . . . 1 . . . 1 . Pick Up 111 | 3 10 . 2 3 28 4 4 . 20 8 1 10 3 2 4 . . . 4 5 Fast Attach 140 | 6 1 . . . 20 7 9 1 22 9 1 20 3 3 5 . 1 2 6 24 Attach 61 | . . 1 . 4 6 2 1 2 11 4 3 4 2 1 . . . 1 2 17 Detach 26 | . . . . . 2 1 . . 7 3 1 1 . . 1 . . 1 . 9 Swap 82 | . 2 1 . 1 13 2 8 . 4 4 5 12 4 8 . 4 . . 4 10 Drop 159 | . 3 . . . 38 9 9 2 24 14 1 19 5 5 9 . 1 . 3 17 Fire 316 | . 30 5 . 19 67 10 21 . 8 27 14 22 11 5 . 12 . 10 4 51 Melee 203 | . . . . 7 10 5 1 . 33 25 8 66 2 2 . 4 . . . 40 Ram 3 | . . . . . . . . . . 2 . . . . . . . . . 1 Kick 4 | . . . . . . 1 3 . . . . . . . . . . . . . Crush . | . . . . . . . . . . . . . . . . . . . . . Escape Stasis 50 | . . . . . . . . . . 37 . 13 . . . . . . . . Rewire 88 | . . . . . . . . . . 64 . 1 5 . 18 . . . . . Trap . | . . . . . . . . . . . . . . . . . . . . . Miscellaneous . | . . . . . . . . . . . . . . . . . . . . . Route ------- -11/Scrapyard -10/Materials -10/Mines (discovered 2 exits: [*Mat] / *Exi) -10/Exiles -9/Mines -8/Materials (discovered 2 exits: *Fac x2) -7/Factory -6/Factory (discovered 3 exits: *Low x2 / *Ext) -6/Waste -6/Factory (discovered 4 exits: *Fac / *Low x2 / *Ext) -6/Extension (discovered 2 exits: *Fac / *Cet) -6/Cetus -5/Factory (discovered 3 exits: *Fac / *Upp x2) -5/Upper Caves -5/Upper Caves (discovered 2 exits: *Fac / *War) -5/Warlord -4/Proximity Caves -4/Factory -4/Waste -4/Factory (discovered 2 exits: *Res / Arm) -3/Research History --------- Turn | Location | Event 6 | -11/Scrapyard | Discovered new exit (range 16) 79 | -11/Scrapyard | Entered Materials 308 | -10/Materials | Build established: Mutant 439 | -10/Materials | Discovered new exit (range 13) 634 | -10/Materials | Entered Mines 669 | -10/Mines | Discovered new exit (range 12) 745 | -10/Mines | Deemed a non-threat by the Exiles lab entrance 745 | -10/Mines | Discovered new exit (range 5) 751 | -10/Mines | Entered Exiles 795 | -10/Exiles | Met 8R-AWN 817 | -10/Exiles | Met EX-HEX 862 | -10/Exiles | Met EX-BIN 883 | -10/Exiles | Aligned with FarCom system 884 | -10/Exiles | Given EX-Vault access code 924 | -10/Exiles | Opened EX-Vault 939 | -10/Exiles | Found 0b10 Alert Chip 973 | -10/Exiles | Warned to stay clear of 0b10 Research branches 1039 | -10/Exiles | Met EX-DEC 1053 | -10/Exiles | Learned location of Zion (-6) 1128 | -10/Exiles | Discovered new exit (range 10) 1201 | -10/Exiles | Left Exiles lab with 0b10 Alert Chip 1201 | -10/Exiles | Entered Mines 1241 | -9/Mines | Learned Materials terminal intel 1658 | -9/Mines | Lost 4 parts (2n2w) 1787 | -9/Mines | Discovered new exit (range 5) 1793 | -9/Mines | Entered Materials 1793 | -8/Materials | Evolved 4 slots: Propulsion x1, Utility x3 1794 | -8/Materials | Loaded intel: 12 terminal locations 1896 | -8/Materials | Found Powered Armor 1898 | -8/Materials | Found Powered Armor 1900 | -8/Materials | Found Powered Armor 1917 | -8/Materials | Found Powered Armor 3197 | -8/Materials | Lost 3 parts (2n1w) 3576 | -8/Materials | Discovered new exit (range 8) 4021 | -8/Materials | Discovered new exit (range 12) 4042 | -8/Materials | Build established: Hacker-Mutant 4257 | -8/Materials | Entered Factory 4257 | -7/Factory | Evolved 2 slots: Propulsion x1, Utility x1 4383 | -7/Factory | Identified exit to DSF 4414 | -7/Factory | Discovered new exit (range 13) 5075 | -7/Factory | Entered another Factory area 5075 | -6/Factory | Evolved 2 slots: Power x1, Weapon x1 5196 | -6/Factory | Discovered new exit (range 15) 5383 | -6/Factory | Build established: Hacker-Skirmisher 5484 | -6/Factory | Discovered new exit (range 4) 6038 | -6/Factory | Discovered new exit (range 11) 6391 | -6/Factory | Sucked down chute 6391 | -6/Factory | Entered Waste 6406 | -6/Waste | EMP discharged 6406 | -6/Waste | System corruption reached 10% 6406 | -6/Waste | Spotted C-40 Crusher 6407 | -6/Waste | Spotted C-40 Crusher 6418 | -6/Waste | Crushed by Compactor (1 part destroyed, 2 dropped) 6432 | -6/Waste | Spotted C-40 Crusher 6436 | -6/Waste | Spotted C-40 Crusher 6438 | -6/Waste | Spotted C-40 Crusher 6441 | -6/Waste | Crushed by Compactor (1 part destroyed, 1 dropped) 6447 | -6/Waste | Crushed by Compactor (1 part destroyed, 1 dropped) 6447 | -6/Waste | Crushed by Compactor (1 part destroyed, 2 dropped) 6465 | -6/Waste | Spotted C-40 Crusher 6465 | -6/Waste | Discovered new exit (range 10) 6470 | -6/Waste | Entered Factory 6478 | -6/Factory | Lost 5 parts (2p1n2w) 6498 | -6/Factory | Discovered new exit (range 7) 6501 | -6/Factory | Identified exit to Factory 6844 | -6/Factory | Discovered new exit (range 10) 6849 | -6/Factory | Identified exit to Extension 7086 | -6/Factory | Fabricated Hacking Suite? 7141 | -6/Factory | Build established: Infiltrator-Ninja 7383 | -6/Factory | Discovered new exit (range 13) 7457 | -6/Factory | Spotted B-75 Beast 7460 | -6/Factory | Noticed a derelict Sapper rigging charges 7619 | -6/Factory | Discovered new exit (range 7) 7626 | -6/Factory | Identified exit to Lower Caves 7688 | -6/Factory | Found Prototype Launcher 7748 | -6/Factory | Cargo convoy interrupted 7809 | -6/Factory | Build established: Assassin 8148 | -6/Factory | Identified Scatter Rocket Array 8182 | -6/Factory | Entered Extension 8267 | -6/Extension | Rescued a captive Derelict 8273 | -6/Extension | Rescued a captive Derelict 8417 | -6/Extension | Build established: Scout 8537 | -6/Extension | Lost 3 allies 8780 | -6/Extension | Spotted B-75 Beast 8933 | -6/Extension | Spotted B-75 Beast 8937 | -6/Extension | Destroyed B-75 Beast 8949 | -6/Extension | Allies destroyed B-75 Beast 8952 | -6/Extension | Core integrity fell below 50% 8979 | -6/Extension | Lost 4 allies 9113 | -6/Extension | Rescued a captive Derelict 9114 | -6/Extension | Rescued a captive Derelict 9166 | -6/Extension | Build established: Commander-Skirmisher 9275 | -6/Extension | Lost 4 allies 9343 | -6/Extension | Rescued A7 9422 | -6/Extension | Rescued a captive Derelict 9476 | -6/Extension | Discovered exit to Factory (range 10) 9477 | -6/Extension | Discovered new exit (range 6) 9493 | -6/Extension | Entered Cetus 9493 | -6/Cetus | Accompanied by 6 allies (A7) 9498 | -6/Cetus | Acquired a Cetus Manufacturing Module code from A7 9511 | -6/Cetus | Spotted Cetus Guard 9511 | -6/Cetus | Spotted Cetus Guard 9513 | -6/Cetus | Spotted Cetus Guard 9517 | -6/Cetus | Spotted Cetus Guard 9519 | -6/Cetus | Allies destroyed Cetus Guard 9521 | -6/Cetus | Allies destroyed Cetus Guard 9522 | -6/Cetus | Allies destroyed Cetus Guard 9524 | -6/Cetus | Allies destroyed Cetus Guard 9571 | -6/Cetus | Lost 3 allies 9579 | -6/Cetus | Started Cetus Manufacturing Module 9604 | -6/Cetus | Manufactured an Enhanced Grunt 9629 | -6/Cetus | Manufactured an Enhanced Grunt 9654 | -6/Cetus | Manufactured an Enhanced Grunt 9679 | -6/Cetus | Manufactured an Enhanced Grunt 9704 | -6/Cetus | Manufactured an Enhanced Grunt 9743 | -6/Cetus | Escorted A7 to Cetus Mainframe 9771 | -6/Cetus | Discovered exit to Factory (range 15) 9845 | -6/Cetus | Entered Factory 9845 | -5/Factory | Accompanied by 8 allies (A7) 9845 | -5/Factory | Evolved 2 slots: Propulsion x1, Utility x1 9850 | -5/Factory | Received a hacking code to weaken MAIN.C 9959 | -5/Factory | Build established: Commander-Mutant 11134 | -5/Factory | Build established: Scavenger-Mutant 11401 | -5/Factory | Discovered new exit (range 16) 11418 | -5/Factory | Identified exit to Factory 11864 | -5/Factory | Identified exit to Upper Caves 12020 | -5/Factory | Entered Upper Caves 12020 | -5/Upper Caves | Accompanied by 3 allies 12027 | -5/Upper Caves | Attracted the attention of an 0b10 checkpoint 12314 | -5/Upper Caves | Identified exit to Upper Caves 12330 | -5/Upper Caves | Build established: Scavenger-Tank 12528 | -5/Upper Caves | Entered another Upper Caves area 12528 | -5/Upper Caves | Accompanied by 3 allies 12552 | -5/Upper Caves | Attracted the attention of an 0b10 outpost 12574 | -5/Upper Caves | Learned Factory non-interactive machine intel 12578 | -5/Upper Caves | Discovered exit to Factory (range 12) 12599 | -5/Upper Caves | Lost 3 allies 12810 | -5/Upper Caves | Build established: Scavenger-Mutant 12876 | -5/Upper Caves | Encountered a Warlord checkpoint 12876 | -5/Upper Caves | Discovered new exit (range 5) 12879 | -5/Upper Caves | Identified exit to Warlord 12882 | -5/Upper Caves | Learned Factory emergency access door positions 12944 | -5/Upper Caves | Entered Warlord 12964 | -5/Warlord | System corruption cleaned by Quarantine Array 13058 | -5/Warlord | Visited the Vortex Lab 13065 | -5/Warlord | Warlord's base attacked by MAIN.C 13066 | -5/Warlord | Found Prototype Energy Gun 13066 | -5/Warlord | Identified Vortex Rail 13190 | -5/Warlord | Met Warlord 13415 | -5/Warlord | Warlord forces counterattacked 13688 | -5/Warlord | Opened side exit 13720 | -5/Warlord | Spotted Executioner 13740 | -5/Warlord | Warlord base infiltrated, sounded retreat 13788 | -5/Warlord | Lost 4 allies 13825 | -5/Warlord | Spotted Executioner 13886 | -5/Warlord | Spotted Executioner 13887 | -5/Warlord | Spotted Striker 13894 | -5/Warlord | Spotted Executioner 13912 | -5/Warlord | Discovered new exit (range 9) 13917 | -5/Warlord | Identified exit to Proximity Caves 13917 | -5/Warlord | Entered Proximity Caves 13919 | -4/Proximity Caves | Attracted the attention of an 0b10 checkpoint 13935 | -4/Proximity Caves | Lost 4 allies 13953 | -4/Proximity Caves | Learned 12 Research zone layouts 14005 | -4/Proximity Caves | Spotter reported a threat 14089 | -4/Proximity Caves | Spotter reported a threat 14133 | -4/Proximity Caves | Spotted B-86 Titan 14177 | -4/Proximity Caves | Spotter reported a threat 14230 | -4/Proximity Caves | Spotter reported a threat 14283 | -4/Proximity Caves | Discovered exit to Factory (range 12) 14288 | -4/Proximity Caves | Entered Factory 14288 | -4/Factory | Evolved 2 slots: Propulsion x1, Utility x1 14289 | -4/Factory | Identified exit to Armory 14291 | -4/Factory | Loaded intel: 162 non-interactive machine locations 14313 | -4/Factory | Lost 3 parts (2p1w) 14420 | -4/Factory | Sucked down chute 14420 | -4/Factory | Entered Waste 14427 | -4/Waste | Spotted C-40 Crusher 14438 | -4/Waste | Spotted C-40 Crusher 14460 | -4/Waste | Warlord forces began an assault 14500 | -4/Waste | Allies destroyed C-40 Crusher 14510 | -4/Waste | Spotted C-40 Crusher 14513 | -4/Waste | Spotted C-40 Crusher 14514 | -4/Waste | Spotted C-40 Crusher 14519 | -4/Waste | Allies destroyed C-40 Crusher 14520 | -4/Waste | Allies destroyed C-40 Crusher 14525 | -4/Waste | Destroyed C-40 Crusher 14529 | -4/Waste | Allies destroyed C-40 Crusher 14539 | -4/Waste | Spotted C-40 Crusher 14549 | -4/Waste | Allies destroyed C-40 Crusher 14569 | -4/Waste | Build established: Hacker-Mutant 14578 | -4/Waste | Lost 8 allies 14578 | -4/Waste | Discovered new exit (range 13) 14586 | -4/Waste | Identified exit to Factory 14613 | -4/Waste | Entered Factory 14613 | -4/Factory | Accompanied by 10 allies 14943 | -4/Factory | Discovered new exit (range 15) 14957 | -4/Factory | Identified exit to Research 15099 | -4/Factory | Build established: Hacker-Skirmisher 15136 | -4/Factory | Entered Research 15136 | -3/Research | Accompanied by 4 allies 15136 | -3/Research | Evolved 2 slots: Utility x2 15265 | -3/Research | Lost 4 allies 16456 | -3/Research | Found Fusion Bomb Launcher 16726 | -3/Research | Lost 16 parts (3p6n4u3w) 16817 | -3/Research | Build established: Hacker-Mutant 17017 | -3/Research | System corruption reached 10% 17019 | -3/Research | Core integrity fell below 50% 17079 | -3/Research | Lost 6 parts (1n2u3w) 17181 | -3/Research | Core integrity fell below 20% 17208 | -3/Research | Lost 5 parts (1n2u2w) 17271 | -3/Research | Destroyed by P-80 Master with Gamma Rifle Last Messages --------------- 17173_ Wheel destroyed. 17174_ Med. Storage Unit destroyed. 17175_ Reflective Plating destroyed. 17175_ Destroyed Reflective Plating. 17176_ System corrupted: Energy discharge (-22). 17177_ Fusion Bomb Launcher destroyed. 17177_ Adv. Remote Datajack destroyed. 17177_ Dropped Gyrokinetic Inverter. 17179_ The unstable cave ceiling collapses. 17193_ System corrupted: Energy discharge (-32). 17207_ U-05 Engineer builds a Wall. 17211_ :DGTY1GD8J=HY=8QWKLYZF>D7B&< WBVVAR 0 17220_ ALERT: Cargo convoy en route, clear transfer corridor. 17228_ System corrupted: Substantial component data lost. 17228_ Penetrated by Slug. 17257_ K-01 Serf cleans the Vacuum Chamber. 17271_ Acquired 1 matter. 17271_ Door malfunctions. Map ----- +----------------------------------------------------+ | ## """ #???????########## """ | | ## """ #????????## ! # | | ## #?????????# # | | ## #?????????# # | | ## ####??????#!!! + """ """ | | ?# ! #??????#!!! # """" """" | | ?# #??????#!!! # """" """" | | ?# ######### #???#########+# """ """ | | ?# #???????# #???# # # | | ?# #???????# #???# # # | | #???????# #???# # # | | #???????# #???# + ###########+######## | | #???????# #???# # #???????# ##### | | #???????# ########+#### #???????# # ! | | ############### #???????# # | | ???# =!!## #??????##! # / | | ???# =!!## #?????? # " | | ???# !!!## ]] #??????## ! # ! | | ???# ## w ]] ##?????######### | | ???# ## ##?????#???????##### | | ?? ####+####### !! # #???????????? | | ???+ #?#### !! [# ! #???????????? | | ???### ### #? !!#???????????? | | ?????# p +?? !!#???????????? | | ?????# p#??? ?#???????????? | | ?????# k p @ #??????#???????????? | | #?# """ ########/#### #??????????????????? | | #?# """ T### ### #??????????????????? | | ####?# """ # # # # #??????????????????? | | ?????# ## # ### ##?????????????????? | | ?????# ## # # #????????????????? | | ?????# #### # #????????????????? | | ?????# pp/ # ??????????????? | | ?????# ########### ###??????????????? | | ??######### # # #????????????????? | | ??# ## ## ## ##+#######????????????? | | ??# ## ## # #????????????? | | ??# + + # #????????????? | | ??# ! ######### # #????????????? | | ??# #?# #? ?# # #????????????? | | ??# #? ##?#?# ! # / #????????????? | | ??##########????####### #????????????? | | ????????????????##??# ###""##"#######????????????? | | ????????????????????# ### ###"#####??????????????? | | ???????????################# = #??????????????? | | ???????????# # #??????????????? | | ##########?# # #??????????????? | | #?# + #??????????????? | | #?# """] """ # #??????????????? | | #?# """ """ # #??????????????? | +----------------------------------------------------+ Best States ------------- Heat Dissipation 84 Energy Generation 35 Energy Capacity 1150 Matter Stores 300 Matter Capacity 300 Sight Range 16 Terrain Scan Density 110 ECM Strength 2 Armor Coverage 400 Resistance: TH 10 Evasion (%) 56 Recoil Reduction 2 Particle Charging 15 Kinecelleration 40 Offensive Hacking 34 Defensive Hacking 14 Item Schematics ----------------- Hacking Suite | -8/Materials | Scanalyzed Powered Armor | -8/Materials | Scanalyzed Robot Schematics ------------------ None Fabricated ------------ Hacking Suite | x1 | -6/Factory Alien Tech Used ----------------- None Achievements -------------- Below Charge!!! Generalissimo Main Advantage Power Corrupts Quick And Dirty Challenges ------------ None Game ------ Seed PhaseCoordinationMultitool Manual? 0 Play Time 04:11:16 Cumulative 37.0 hours Start 2024.05.21 @ 13:28:06 End 2024.05.23 @ 11:47:42 Sessions 9 Manual Loads 0 Difficulty Rogue Special Mode None Game No. 25 Rogue 24 Adventurer 1 Explorer 0 Win Type - Total 1 Types 1/0/0/0/0/0/0/0/0 Lore% 31 Gallery% 41 Achievement% 32 Wizard Run 0 Options --------- Layout 1 ASCII 0 Keyboard 0 Movement Mouse Keybinds 0 Fullscreen 1 Font 36/Proggy Map View 50x40 Zoom Use 0% Tactical HUD 1 Map Filters NONE Filters NONE Steam 0 RUN: e6725c90-ef23-444d-af44-efce1c08ea53